fUST/lending_fUST_20260314
["ID","MTS","AMOUNT","RATE_DAILY","PERIOD"]
[408323130,1773421410531,-2000.0,4.891e-05,2]
[408323131,1773421411639,-2000.0,4.891e-05,2]
[408323132,1773421412028,-1000.0,4.891e-05,2]
[408323133,1773421412050,-281.29578935,4.916e-05,2]
[408323134,1773421412072,-718.70421065,4.94e-05,2]
[408323135,1773421412327,-2000.0,4.94e-05,2]
[408323136,1773421412686,-2000.0,4.94e-05,2]
[408323137,1773421413101,-281.29578935,4.94e-05,2]
[408323138,1773421413124,-1200.0,5.039e-05,2]
[408323139,1773421413150,-300.0,5.115e-05,2]
[408323140,1773421413173,-218.70421065,5.115e-05,2]
[408323141,1773421413549,-81.29578935,5.115e-05,2]
[408323142,1773421413572,-156.0,5.115e-05,2]
[408323143,1773421413596,-600.0,5.298e-05,2]
[408323144,1773421413618,-480.0,5.543e-05,2]
[408323145,1773421413639,-234.0,5.626e-05,2]
[408323146,1773421413663,-448.70421065,5.828e-05,2]
[408323147,1773421414003,-271.29578935,5.828e-05,2]
[408323148,1773421414025,-864.0,6.41e-05,2]
[408323149,1773421414048,-331.92903143,6.916e-05,2]
[408323150,1773421414075,-532.77517922,7.036e-05,2]
[408323151,1773421414437,-2000.0,7.036e-05,2]
[408323152,1773421414788,-2000.0,7.036e-05,2]
[408323153,1773421415126,-2000.0,7.036e-05,2]
[408323154,1773421415475,-2000.0,7.036e-05,2]
[408323155,1773421415927,-1467.22482078,7.036e-05,2]
[408323156,1773421415951,-532.77517922,7.051e-05,2]
[408323157,1773421416362,-467.22482078,7.051e-05,2]
[408323158,1773421416384,-1532.77517922,7.06e-05,2]
[408323159,1773421416789,-617.96282078,7.06e-05,2]
[408323160,1773421515784,-1000.0,6.936e-05,2]
[408323161,1773421525667,-2000.0,6.936e-05,2]
[408323162,1773421526726,-2000.0,6.936e-05,2]
[408323163,1773421527078,-2000.0,6.936e-05,2]
[408323164,1773421527530,-2000.0,6.936e-05,2]
[408323165,1773421527813,-2000.0,6.936e-05,2]
[408323166,1773421528210,-2000.0,6.936e-05,2]
[408323167,1773421528647,-2000.0,6.936e-05,2]
[408323168,1773421529042,-2000.0,6.936e-05,2]
[408323169,1773421529508,-2000.0,6.936e-05,2]
[408323170,1773421529935,-2000.0,6.936e-05,2]
[408323171,1773421530369,-2000.0,6.936e-05,2]
[408323172,1773421530787,-2000.0,6.936e-05,2]
[408323173,1773421531096,-2000.0,6.936e-05,2]
[408323174,1773421531533,-2000.0,6.936e-05,2]
[408323175,1773421531979,-2000.0,6.936e-05,2]
[408323176,1773421532293,-2000.0,6.936e-05,2]
[408323177,1773421532706,-2000.0,6.936e-05,2]
[408323178,1773421532991,-2000.0,6.936e-05,2]
[408323179,1773421533307,-2000.0,6.936e-05,2]
[408323180,1773421533731,-2000.0,6.936e-05,2]
[408323181,1773421534204,-2000.0,6.936e-05,2]
[408323182,1773421534596,-2000.0,6.936e-05,2]
[408323183,1773421534902,-2000.0,6.936e-05,2]
[408323184,1773421535287,-2000.0,6.936e-05,2]
[408323185,1773421535622,-2000.0,6.936e-05,2]
[408323186,1773421536028,-2000.0,6.936e-05,2]
[408323187,1773421536328,-2000.0,6.936e-05,2]
[408323188,1773421536750,-2000.0,6.936e-05,2]
[408323189,1773421537217,-2000.0,6.936e-05,2]
[408323190,1773421537529,-2000.0,6.936e-05,2]
[408323191,1773421537932,-2000.0,6.936e-05,2]
[408323192,1773421538403,-2000.0,6.936e-05,2]
[408323193,1773421538797,-2000.0,6.936e-05,2]
[408323195,1773421539230,-2000.0,6.936e-05,2]
[408323196,1773421539636,-2000.0,6.936e-05,2]
[408323197,1773421540051,-2000.0,6.936e-05,2]
[408323198,1773421540487,-2000.0,6.936e-05,2]
[408323199,1773421600878,-300.0,6.935e-05,2]
[408323200,1773421600899,-500.0,6.935e-05,2]
[408323201,1773421600922,-500.0,6.935e-05,2]
[408323202,1773421600944,-500.0,6.935e-05,2]
[408323203,1773421600966,-200.0,6.935e-05,2]
[408323204,1773421602235,-300.0,6.935e-05,2]
[408323205,1773421602256,-500.0,6.935e-05,2]
[408323206,1773421602277,-500.0,6.935e-05,2]
[408323207,1773421602299,-500.0,6.935e-05,2]
[408323208,1773421602319,-200.0,6.935e-05,2]
[408323209,1773421602344,-8.78385989,6.935e-05,2]
[408323210,1773421602367,-500.0,6.935e-05,2]
[408323211,1773421602389,-500.0,6.935e-05,2]
[408323212,1773421602410,-500.0,6.935e-05,2]
[408323213,1773421602431,-491.21614011,6.935e-05,2]
[408323214,1773421602703,-8.78385989,6.935e-05,2]
[408323215,1773421602725,-500.0,6.935e-05,2]
[408323216,1773421602746,-500.0,6.935e-05,2]
[408323217,1773421602767,-500.0,6.935e-05,2]
[408323218,1773421602787,-491.21614011,6.935e-05,2]
[408323219,1773421602990,-8.78385989,6.935e-05,2]
[408323220,1773421603012,-500.0,6.935e-05,2]
[408323221,1773421603033,-500.0,6.935e-05,2]
[408323222,1773421603055,-500.0,6.935e-05,2]
[408323223,1773421603077,-491.21614011,6.935e-05,2]
[408323224,1773421603505,-8.78385989,6.935e-05,2]
[408323225,1773421603527,-508.46637778,6.935e-05,2]
[408323226,1773421603549,-500.0,6.935e-05,2]
[408323227,1773421603572,-500.0,6.935e-05,2]
[408323228,1773421603595,-482.74976233,6.935e-05,2]
[408323229,1773421603961,-17.25023767,6.935e-05,2]
[408323230,1773421603985,-500.0,6.935e-05,2]
[408323231,1773421604006,-500.0,6.935e-05,2]
[408323232,1773421604029,-500.0,6.935e-05,2]
[408323233,1773421604053,-482.74976233,6.935e-05,2]
[408323234,1773421604433,-17.25023767,6.935e-05,2]
[408323235,1773421604457,-500.0,6.935e-05,2]
[408323236,1773421604478,-500.0,6.935e-05,2]
[408323237,1773421604507,-500.0,6.935e-05,2]
[408323238,1773421604533,-482.74976233,6.935e-05,2]
[408323239,1773421604739,-17.25023767,6.935e-05,2]
[408323240,1773421604761,-500.0,6.935e-05,2]
[408323241,1773421604783,-500.0,6.935e-05,2]
[408323242,1773421604808,-500.0,6.935e-05,2]
[408323243,1773421604833,-482.74976233,6.935e-05,2]
[408323244,1773421605123,-17.25023767,6.935e-05,2]
[408323245,1773421605147,-500.0,6.935e-05,2]
[408323246,1773421605179,-500.0,6.935e-05,2]
[408323247,1773421605207,-433.82183534,6.935e-05,2]
[408323248,1773421605230,-500.0,6.935e-05,2]
[408323249,1773421605256,-48.92792699,6.935e-05,2]
[408323250,1773421605682,-451.07207301,6.935e-05,2]
[408323251,1773421605708,-500.0,6.935e-05,2]
[408323252,1773421605734,-160.71328379,6.935e-05,2]
[408323253,1773421605760,-500.0,6.935e-05,2]
[408323254,1773421605785,-388.2146432,6.935e-05,2]
[408323255,1773421605980,-161.7853568,6.935e-05,2]
[408323256,1773421606006,-500.0,6.935e-05,2]
[408323257,1773421606032,-500.0,6.935e-05,2]
[408323258,1773421606057,-500.0,6.935e-05,2]
[408323259,1773421606080,-338.2146432,6.935e-05,2]
[408323260,1773421606320,-161.7853568,6.935e-05,2]
[408323261,1773421606345,-500.0,6.935e-05,2]
[408323262,1773421606368,-500.0,6.935e-05,2]
[408323263,1773421606393,-500.0,6.935e-05,2]
[408323264,1773421606416,-338.2146432,6.935e-05,2]
[408323265,1773421606681,-161.7853568,6.935e-05,2]
[408323266,1773421606707,-500.0,6.935e-05,2]
[408323267,1773421606730,-500.0,6.935e-05,2]
[408323268,1773421606754,-500.0,6.935e-05,2]
[408323269,1773421606778,-338.2146432,6.935e-05,2]
[408323270,1773421607000,-161.7853568,6.935e-05,2]
[408323271,1773421607024,-500.0,6.935e-05,2]
[408323272,1773421607048,-500.0,6.935e-05,2]
[408323273,1773421607073,-500.0,6.935e-05,2]
[408323274,1773421607096,-338.2146432,6.935e-05,2]
[408323275,1773421607340,-161.7853568,6.935e-05,2]
[408323276,1773421607365,-293.09434343,6.935e-05,2]
[408323277,1773421607388,-595.0,6.935e-05,2]
[408323278,1773421607418,-500.0,6.935e-05,2]
[408323279,1773421607444,-450.12029977,6.935e-05,2]
[408323280,1773421607941,-49.87970023,6.935e-05,2]
[408323281,1773421607969,-500.0,6.935e-05,2]
[408323282,1773421607993,-500.0,6.935e-05,2]
[408323283,1773421608019,-500.0,6.935e-05,2]
[408323284,1773421608047,-450.12029977,6.935e-05,2]
[408323285,1773421608410,-49.87970023,6.935e-05,2]
[408323286,1773421608436,-500.0,6.935e-05,2]
[408323287,1773421608463,-500.0,6.935e-05,2]
[408323288,1773421608493,-500.0,6.935e-05,2]
[408323289,1773421608519,-450.12029977,6.935e-05,2]
[408323290,1773421608737,-49.87970023,6.935e-05,2]
[408323291,1773421608759,-500.0,6.935e-05,2]
[408323292,1773421608783,-500.0,6.935e-05,2]
[408323293,1773421608807,-500.0,6.935e-05,2]
[408323294,1773421608830,-450.12029977,6.935e-05,2]
[408323295,1773421609060,-49.87970023,6.935e-05,2]
[408323296,1773421609084,-500.0,6.935e-05,2]
[408323297,1773421609106,-500.0,6.935e-05,2]
[408323298,1773421609130,-500.0,6.935e-05,2]
[408323299,1773421609171,-450.12029977,6.935e-05,2]
[408323300,1773421609377,-49.87970023,6.935e-05,2]
[408323301,1773421609401,-500.0,6.935e-05,2]
[408323302,1773421609433,-500.0,6.935e-05,2]
[408323303,1773421609468,-500.0,6.935e-05,2]
[408323304,1773421609495,-450.12029977,6.935e-05,2]
[408323305,1773421609702,-49.87970023,6.935e-05,2]
[408323306,1773421609726,-500.0,6.935e-05,2]
[408323307,1773421609754,-500.0,6.935e-05,2]
[408323308,1773421609780,-500.0,6.935e-05,2]
[408323309,1773421609809,-450.12029977,6.935e-05,2]
[408323310,1773421610009,-49.87970023,6.935e-05,2]
[408323311,1773421610035,-500.0,6.935e-05,2]
[408323312,1773421610057,-500.0,6.935e-05,2]
[408323313,1773421610080,-500.0,6.935e-05,2]
[408323314,1773421610104,-450.12029977,6.935e-05,2]
[408323315,1773421610317,-49.87970023,6.935e-05,2]
[408323316,1773421610343,-500.0,6.935e-05,2]
[408323317,1773421610367,-500.0,6.935e-05,2]
[408323318,1773421610391,-500.0,6.935e-05,2]
[408323319,1773421610416,-450.12029977,6.935e-05,2]
[408323320,1773421610649,-49.87970023,6.935e-05,2]
[408323321,1773421610674,-500.0,6.935e-05,2]
[408323322,1773421610699,-500.0,6.935e-05,2]
[408323323,1773421610722,-500.0,6.935e-05,2]
[408323324,1773421610747,-450.12029977,6.935e-05,2]
[408323325,1773421611099,-49.87970023,6.935e-05,2]
[408323326,1773421611121,-500.0,6.935e-05,2]
[408323327,1773421611383,-500.0,6.935e-05,2]
[408323328,1773421611404,-500.0,6.935e-05,2]
[408323329,1773421611427,-450.12029977,6.935e-05,2]
[408323330,1773421611609,-49.87970023,6.935e-05,2]
[408323331,1773421611632,-500.0,6.935e-05,2]
[408323332,1773421611654,-576.94426168,6.935e-05,2]
[408323333,1773421611676,-214.86909281,6.935e-05,2]
[408323334,1773421611696,-499.99999999,6.935e-05,2]
[408323335,1773421611718,-158.30694529,6.935e-05,2]
[408323336,1773421612709,-341.69305471,6.935e-05,2]
[408323337,1773421612733,-500.0,6.935e-05,2]
[408323338,1773421612754,-500.0,6.935e-05,2]
[408323339,1773421612775,-500.0,6.935e-05,2]
[408323340,1773421612797,-158.30694529,6.935e-05,2]
[408323341,1773421612878,-341.69305471,6.935e-05,2]
[408323342,1773421612901,-446.41955413,6.935e-05,2]
[408323343,1773421612923,-500.0,6.935e-05,2]
[408323344,1773421612949,-500.0,6.935e-05,2]
[408323345,1773421612972,-211.88739116,6.935e-05,2]
[408323346,1773421613333,-288.11260884,6.935e-05,2]
[408323347,1773421613356,-500.0,6.935e-05,2]
[408323348,1773421613380,-500.0,6.935e-05,2]
[408323349,1773421613404,-500.0,6.935e-05,2]
[408323350,1773421613427,-211.88739116,6.935e-05,2]
[408323351,1773421613688,-288.11260884,6.935e-05,2]
[408323352,1773421613711,-500.0,6.935e-05,2]
[408323353,1773421613734,-500.0,6.935e-05,2]
[408323354,1773421613758,-500.0,6.935e-05,2]
[408323355,1773421613781,-211.88739116,6.935e-05,2]
[408323356,1773421614171,-288.11260884,6.935e-05,2]
[408323357,1773421614192,-500.0,6.935e-05,2]
[408323358,1773421614214,-500.0,6.935e-05,2]
[408323359,1773421614236,-500.0,6.935e-05,2]
[408323360,1773421614259,-211.88739116,6.935e-05,2]
[408323361,1773421614698,-288.11260884,6.935e-05,2]
[408323362,1773421614723,-500.0,6.935e-05,2]
[408323363,1773421614746,-500.0,6.935e-05,2]
[408323364,1773421614770,-500.0,6.935e-05,2]
[408323365,1773421614793,-211.88739116,6.935e-05,2]
[408323366,1773421614873,-288.11260884,6.935e-05,2]
[408323367,1773421614896,-500.0,6.935e-05,2]
[408323368,1773421614919,-500.0,6.935e-05,2]
[408323369,1773421614941,-500.0,6.935e-05,2]
[408323370,1773421614964,-211.88739116,6.935e-05,2]
[408323371,1773421615299,-288.11260884,6.935e-05,2]
[408323372,1773421615321,-500.0,6.935e-05,2]
[408323373,1773421615345,-500.0,6.935e-05,2]
[408323374,1773421615370,-500.0,6.935e-05,2]
[408323375,1773421615395,-211.88739116,6.935e-05,2]
[408323376,1773421615746,-288.11260884,6.935e-05,2]
[408323377,1773421615772,-156.31094009,6.935e-05,2]
[408323378,1773421615794,-500.0,6.935e-05,2]
[408323379,1773421615816,-500.0,6.935e-05,2]
[408323380,1773421615838,-500.0,6.935e-05,2]
[408323381,1773421615860,-55.57645107,6.935e-05,2]
[408323382,1773421617530,-2000.0,6.866e-05,2]
[408323383,1773421617842,-2000.0,6.866e-05,2]
[408323384,1773421618178,-1000.0,6.866e-05,2]
[408323385,1773421618202,-444.42354893,6.935e-05,2]
[408323386,1773421618223,-500.0,6.935e-05,2]
[408323387,1773421618245,-55.57645107,6.935e-05,2]
[408323388,1773421618535,-444.42354893,6.935e-05,2]
[408323389,1773421618559,-500.0,6.935e-05,2]
[408323390,1773421618581,-500.0,6.935e-05,2]
[408323391,1773421618604,-500.0,6.935e-05,2]
[408323392,1773421618626,-55.57645107,6.935e-05,2]
[408323393,1773421618853,-444.42354893,6.935e-05,2]
[408323394,1773421618877,-500.0,6.935e-05,2]
[408323395,1773421618901,-500.0,6.935e-05,2]
[408323396,1773421618923,-500.0,6.935e-05,2]
[408323397,1773421618946,-55.57645107,6.935e-05,2]
[408323398,1773421619218,-444.42354893,6.935e-05,2]
[408323399,1773421619242,-500.0,6.935e-05,2]
[408323400,1773421619266,-500.0,6.935e-05,2]
[408323401,1773421619289,-500.0,6.935e-05,2]
[408323402,1773421619311,-55.57645107,6.935e-05,2]
[408323403,1773421619551,-444.42354893,6.935e-05,2]
[408323404,1773421619575,-500.0,6.935e-05,2]
[408323405,1773421619599,-500.0,6.935e-05,2]
[408323406,1773421619623,-500.0,6.935e-05,2]
[408323407,1773421619645,-55.57645107,6.935e-05,2]
[408323408,1773421619909,-444.42354893,6.935e-05,2]
[408323409,1773421619933,-500.0,6.935e-05,2]
[408323410,1773421619956,-500.0,6.935e-05,2]
[408323411,1773421619981,-500.0,6.935e-05,2]
[408323412,1773421620006,-55.57645107,6.935e-05,2]
[408323413,1773421620387,-444.42354893,6.935e-05,2]
[408323414,1773421620409,-500.0,6.935e-05,2]
[408323415,1773421620433,-500.0,6.935e-05,2]
[408323416,1773421620456,-500.0,6.935e-05,2]
[408323417,1773421620480,-55.57645107,6.935e-05,2]
[408323418,1773421620837,-444.42354893,6.935e-05,2]
[408323419,1773421621060,-500.0,6.935e-05,2]
[408323420,1773421621083,-197.4382513,6.935e-05,2]
[408323421,1773421621104,-500.0,6.935e-05,2]
[408323422,1773421621128,-358.13819977,6.935e-05,2]
[408323423,1773421621344,-141.86180023,6.935e-05,2]
[408323424,1773421621366,-500.0,6.935e-05,2]
[408323425,1773421621388,-1358.13819977,6.936e-05,2]
[408323426,1773421621765,-2000.0,6.936e-05,2]
[408323427,1773421622409,-300.0,6.934e-05,2]
[408323428,1773421622432,-1700.0,6.936e-05,2]
[408323429,1773421622675,-2000.0,6.936e-05,2]
[408323430,1773421623361,-2000.0,6.936e-05,2]
[408323431,1773421623796,-2000.0,6.936e-05,2]
[408323432,1773421624105,-2000.0,6.936e-05,2]
[408323433,1773421624544,-2000.0,6.936e-05,2]
[408323434,1773421624841,-2000.0,6.936e-05,2]
[408323435,1773421625190,-2000.0,6.936e-05,2]
[408323436,1773421625564,-2000.0,6.936e-05,2]
[408323437,1773421625922,-2000.0,6.936e-05,2]
[408323438,1773421626379,-2000.0,6.936e-05,2]
[408323439,1773421626692,-2000.0,6.936e-05,2]
[408323440,1773421627048,-2000.0,6.936e-05,2]
[408323441,1773421627390,-2000.0,6.936e-05,2]
[408323442,1773421627815,-2000.0,6.936e-05,2]
[408323443,1773421628181,-2000.0,6.936e-05,2]
[408323444,1773421628492,-2000.0,6.936e-05,2]
[408323445,1773421628921,-2000.0,6.936e-05,2]
[408323446,1773421629243,-2000.0,6.936e-05,2]
[408323447,1773421629997,-2000.0,6.936e-05,2]
[408323448,1773421630029,-2000.0,6.936e-05,2]
[408323449,1773421630439,-2000.0,6.936e-05,2]
[408323450,1773421701375,-2000.0,6.867e-05,2]
[408323451,1773421702344,-2000.0,6.867e-05,2]
[408323452,1773421703852,-1000.0,6.867e-05,2]
[408323453,1773421703874,-1000.0,6.867e-05,2]
[408323454,1773421704910,-2000.0,6.867e-05,2]
[408323455,1773421705353,-2000.0,6.867e-05,2]
[408323456,1773421705810,-1560.11059898,6.8e-05,2]
[408323457,1773421705834,-439.88940102,6.867e-05,2]
[408323458,1773421706294,-2000.0,6.8e-05,2]
[408323459,1773421706674,-1505.23699304,6.8e-05,2]
[408323460,1773421706701,-494.76300696,6.8e-05,2]
[408323461,1773421707114,-2000.0,6.8e-05,2]
[408323462,1773421708271,-1304.39507013,6.8e-05,2]
[408323463,1773421708296,-695.60492987,6.8e-05,2]
[408323464,1773421708713,-2000.0,6.8e-05,2]
[408323465,1773421709044,-1176.43528433,6.8e-05,2]
[408323466,1773421709070,-823.56471567,6.8e-05,2]
[408323467,1773421709545,-2000.0,6.8e-05,2]
[408323468,1773421710022,-1415.27871978,6.8e-05,2]
[408323469,1773421710046,-584.72128022,6.867e-05,2]
[408323471,1773421758111,-2000.0,6.73e-05,2]
[408323472,1773421759075,-1558.81598043,6.73e-05,2]
[408323473,1773421759100,-441.18401957,6.798e-05,2]
[408323474,1773421759524,-2000.0,6.798e-05,2]
[408323475,1773421759832,-2000.0,6.798e-05,2]
[408323476,1773421760254,-558.81598043,6.798e-05,2]
[408323477,1773421760277,-300.0,6.866e-05,2]
[408323478,1773421760299,-1141.18401957,6.867e-05,2]
[408323479,1773421760559,-2000.0,6.867e-05,2]
[408323482,1773421801682,-734.28116244,6.663e-05,2]
[408323483,1773421801708,-5000.0,6.73e-05,2]
[408323484,1773421801737,-1965.71883756,6.798e-05,2]
[408323485,1773421802507,150.34,2e-05,2]
[408323486,1773421802807,150.34,2e-05,2]
[408323487,1773421803110,150.34,2e-05,2]
[408323488,1773421803387,150.34,2e-05,2]
[408323489,1773421803812,150.34,2e-05,2]
[408323490,1773421804081,150.34,2e-05,2]
[408323491,1773421804345,150.34,2e-05,2]
[408323492,1773421804857,150.34,2e-05,2]
[408323493,1773421805121,150.34,2e-05,2]
[408323494,1773421819102,-5000.0,2.079e-05,2]
[408323541,1773421831757,-334.45923056,2.079e-05,2]
[408323543,1773421831770,-914.97430498,2.079e-05,2]
[408323545,1773421831782,-1280.11762686,2.079e-05,2]
[408323738,1773421837979,-2470.4488376,2.079e-05,2]
[408323739,1773421837989,-150.34,2.1e-05,2]
[408323740,1773421838001,-150.34,2.1e-05,2]
[408323741,1773421838011,-150.34,2.1e-05,2]
[408323742,1773421838021,-150.34,2.1e-05,2]
[408323743,1773421838030,-150.34,2.1e-05,2]
[408323744,1773421838039,-150.34,2.1e-05,2]
[408323745,1773421838049,-150.34,2.1e-05,2]
[408323746,1773421838059,-150.34,2.1e-05,2]
[408323747,1773421838069,-150.34,2.1e-05,2]
[408323748,1773421838078,-150.34,2.1e-05,2]
[408323749,1773421838087,-150.34,2.1e-05,2]
[408323750,1773421838101,-150.34,2.1e-05,2]
[408323751,1773421838115,-150.34,2.1e-05,2]
[408323752,1773421838128,-150.34,2.1e-05,2]
[408323753,1773421838142,-150.34,2.1e-05,2]
[408323754,1773421838155,-150.34,2.1e-05,2]
[408323755,1773421838168,-150.34,2.1e-05,2]
[408323756,1773421838179,-150.34,2.1e-05,2]
[408323757,1773421838190,-150.34,2.2e-05,2]
[408323758,1773421838203,-150.34,2.2e-05,2]
[408323759,1773421838215,-150.34,2.2e-05,2]
[408323760,1773421838226,-150.34,2.2e-05,2]
[408323761,1773421838238,-150.34,2.2e-05,2]
[408323762,1773421838251,-150.34,2.2e-05,2]
[408323763,1773421838263,-150.34,2.2e-05,2]
[408323764,1773421838276,-150.34,2.2e-05,2]
[408323765,1773421838289,-150.34,2.2e-05,2]
[408323766,1773421838301,-515.0,6.663e-05,2]
[408323767,1773421838313,-300.0,6.797e-05,2]
[408323768,1773421838327,-300.0,6.797e-05,2]
[408323769,1773421838340,-300.0,6.797e-05,2]
[408323770,1773421838352,-3034.28116244,6.798e-05,2]
[408323771,1773421838364,-1200.0,6.866e-05,2]
[408323772,1773421838376,-4656.01612163,6.867e-05,2]
[408323773,1773421838388,-269.03129294,6.902e-05,2]
[408323774,1773421838399,-500.0,6.913e-05,2]
[408323775,1773421838410,-500.0,6.913e-05,2]
[408323776,1773421838422,-500.0,6.913e-05,2]
[408323777,1773421838436,-500.0,6.913e-05,2]
[408323778,1773421838448,-334.27404198,6.935e-05,2]
[408323779,1773421838460,-500.0,6.935e-05,2]
[408323780,1773421838471,-500.0,6.935e-05,2]
[408323781,1773421838482,-500.0,6.935e-05,2]
[408323782,1773421838493,-500.0,6.935e-05,2]
[408323783,1773421838504,-500.0,6.935e-05,2]
[408323784,1773421838517,-500.0,6.935e-05,2]
[408323785,1773421838527,-500.0,6.935e-05,2]
[408323786,1773421838542,-500.0,6.935e-05,2]
[408323787,1773421838554,-500.0,6.935e-05,2]
[408323788,1773421838566,-618.34842399,6.935e-05,2]
[408323789,1773421838579,-500.0,6.935e-05,2]
[408323790,1773421838590,-500.0,6.935e-05,2]
[408323791,1773421838603,-456.3480931,6.935e-05,2]
[408323792,1773421838616,-500.0,6.935e-05,2]
[408323793,1773421838629,-455.0,6.935e-05,2]
[408323794,1773421838641,-500.0,6.935e-05,2]
[408323795,1773421838654,-500.0,6.935e-05,2]
[408323796,1773421838666,-477.0104826,6.935e-05,2]
[408323797,1773421838676,-500.0,6.935e-05,2]
[408323798,1773421838687,-500.0,6.935e-05,2]
[408323799,1773421838697,-500.0,6.935e-05,2]
[408323800,1773421838708,-500.0,6.935e-05,2]
[408323801,1773421838719,-500.0,6.935e-05,2]
[408323802,1773421838732,-500.0,6.935e-05,2]
[408323803,1773421838745,-500.0,6.935e-05,2]
[408323804,1773421838757,-500.0,6.935e-05,2]
[408323805,1773421838769,-420.63109401,6.935e-05,2]
[408323806,1773421838779,-1994125.86268546,6.936e-05,2]
[408323807,1773421838792,-5100.54531519,6.936e-05,2]
[408323808,1773421838805,-426.093,6.936e-05,2]
[408323822,1773421844125,-442.58507751,6.936e-05,2]
[408323823,1773421844193,5000.0,2.079e-05,2]
[408323824,1773421844235,-1963.36,6.936e-05,2]
[408323825,1773421844246,-2943.26994057,6.936e-05,2]
[408323826,1773421844257,-272940.1457815,6.936e-05,2]
[408323827,1773421844266,-500.0,7.461e-05,2]
[408323828,1773421844276,-1000.0,7.461e-05,2]
[408323829,1773421844285,-1000.0,7.461e-05,2]
[408323830,1773421844294,-420.0,7.477e-05,2]
[408323831,1773421844303,-300.0,7.477e-05,2]
[408323832,1773421844312,-658.0,7.553e-05,2]
[408323833,1773421844321,-1394.0,7.824e-05,2]
[408323834,1773421844331,-2195.0,7.824e-05,2]
[408323835,1773421844340,-640.0,7.824e-05,2]
[408323836,1773421844350,-214.45316941,8.008e-05,2]
[408323837,1773421844359,-1500.0,8.008e-05,2]
[408323838,1773421844369,-2150.738,8.122e-05,2]
[408323839,1773421844379,-344.52659969,8.219e-05,2]
[408323840,1773421844388,-500.0,8.219e-05,2]
[408323841,1773421844398,-587.0,8.224e-05,2]
[408323842,1773421844408,-600.0,8.289e-05,2]
[408323843,1773421844418,-437.0,8.33e-05,2]
[408323844,1773421844428,-536.032,8.33e-05,2]
[408323845,1773421844437,-748.0,8.33e-05,2]
[408323846,1773421844447,-183.0,8.33e-05,2]
[408323847,1773421844457,-150.601,8.414e-05,2]
[408323848,1773421844467,-2000.0,8.556e-05,2]
[408323849,1773421844476,-2230.315306,8.67e-05,2]
[408323850,1773421844486,-448.47339934,8.7e-05,2]
[408323851,1773421844496,-500.0,8.805e-05,2]
[408323852,1773421844508,-500.0,8.805e-05,2]
[408323853,1773421844519,-500.0,8.805e-05,2]
[408323854,1773421844529,-500.0,8.805e-05,2]
[408323855,1773421844539,-500.0,8.805e-05,2]
[408323856,1773421844551,-500.0,8.805e-05,2]
[408323857,1773421844561,-500.0,8.805e-05,2]
[408323858,1773421844571,-500.0,8.805e-05,2]
[408323859,1773421844580,-500.0,8.805e-05,2]
[408323860,1773421844589,-500.0,8.805e-05,2]
[408323861,1773421844600,-500.0,8.805e-05,2]
[408323862,1773421844616,-500.0,8.805e-05,2]
[408323863,1773421844632,-500.0,8.805e-05,2]
[408323864,1773421844642,-500.0,8.805e-05,2]
[408323865,1773421844652,-167.44052948,8.805e-05,2]
[408323866,1773421844662,-317.45692566,8.902e-05,2]
[408323867,1773421844672,-167.381542,8.904e-05,2]
[408323868,1773421844681,-239.80765339,8.973e-05,2]
[408323869,1773421844692,-500.0,9e-05,2]
[408323870,1773421844703,-500.0,9e-05,2]
[408323871,1773421844713,-500.0,9e-05,2]
[408323872,1773421844722,-500.0,9e-05,2]
[408323873,1773421844731,-217.19,9e-05,2]
[408323874,1773421844741,-168965.76091483,9e-05,2]
[408323875,1773421844751,-241.0,9.047e-05,2]
[408323876,1773421844761,-167.381542,9.052e-05,2]
[408323877,1773421844772,-2500.0,9.104e-05,2]
[408323878,1773421844782,-720.0,9.117e-05,2]
[408323879,1773421844793,-160.0,9.178e-05,2]
[408323880,1773421844803,-167.381542,9.201e-05,2]
[408323881,1773421844814,-2312.83697232,9.218e-05,2]
[408323882,1773421844823,-167.381542,9.349e-05,2]
[408323883,1773421844834,-174.76411948,9.521e-05,2]
[408323884,1773421844843,-846.92609591,9.6e-05,3]
[408323885,1773421844853,-3000.0,9.652e-05,2]
[408323886,1773421844863,-458333.86143218,9.701e-05,2]